Workbook

Sheet Alle_Tools (hidden)
G3: Unbekannte nach Links Kopieren
D4: Z0 | E4: =E5/E6 -> 182.0044149 | I4: 80 | J4: =J5/J6 -> 80 | K4: 80 | L4: =SQRT(-L8/L7) -> 80 | M4: =M5/M6 -> 80
B5: F=Y0/Z0 | D5: Y0 | E5: =E10/2+SQRT((E10/2)^2+E6^2*E9^2) -> 145.6035319 | I5: =I4*I6 -> 64 | J5: 64 | K5: 64 | L5: =L8 -> 64 | M5: =M10/2+SQRT((M10/2)^2+M6^2*M9^2) -> 64
D6: F | E6: 0.8 | I6: 0.8 | J6: 0.8 | K6: =K5/K4 -> 0.8 | L6: =L5/L4 -> 0.8 | M6: 0.8
B7: Y=A*X^2+B | D7: A | E7: =-E8/E4^2 -> -0.00439549777 | I7: =-I8/I4^2 -> -0.01 | J7: -0.01 | K7: -0.01 | L7: -0.01 | M7: -0.01
D8: B | E8: =E5 -> 145.6035319 | I8: =I5 -> 64 | J8: 64 | K8: 64 | L8: 64 | M8: =M5 -> 64
D9: Z | E9: 90 | M9: 20
D10: Y | E10: 110 | M10: 60
D14: Wertetabelle
D15: Z | E15: Y
D16: 0 | E16: =$E$7*D16^2+$E$8 -> 145.6035319
D17: =D16+($D$24-$D$16)/(ROW($D$24)-ROW($D$16)) -> 22.75055187 | E17: =$E$7*D17^2+$E$8 -> 143.3284768
D18: =D17+($D$24-$D$16)/(ROW($D$24)-ROW($D$16)) -> 45.50110373 | E18: 136.5033112
D19: 68.2516556 | E19: 125.1280353
D20: 91.00220746 | E20: 109.202649
D21: 113.7527593 | E21: 88.72715228
D22: =D21+($D$24-$D$16)/(ROW($D$24)-ROW($D$16)) -> 136.5033112 | E22: 63.70154522
D23: =D22+($D$24-$D$16)/(ROW($D$24)-ROW($D$16)) -> 159.2538631 | E23: 34.1258278
D24: =$E$4 -> 182.0044149 | E24: 0

Sheet Sideway Extention
B2: Required finger length with lateral projection
B3: Version 2.1-2024-03-12 Erstellt von: T. Schleusener (DW 2758)
O4: -----> | P4: Führungsart | Q4: F=Y0/Z0 | T4: <----
O5: Die Berechnung findet | P5: Sliding guidance(50 %) - Angular-/Radial Gripper | Q5: 0.5
B6: Created by: | O6: in diesen ausgeblendeten | P6: Sliding guidance (80 %) - Parallel Gripper | Q6: 0.8
B7: Date: | C7: =NOW() -> 2024-03-15T15:01:24.750 | O7: Spalten statt | P7: Sliding guidance (100 %) - Parallel Gripper e.g. PGN-Plus-P | Q7: 0.8
B8: Remark: | P8: Roller guidance (100%) | Q8: 1
P10: Äquivalent | R10: Greifer
P11: F=Y0/Z0 | Q11: =INDEX(Q5:Q8,MATCH(C14,P5:P8,0)) -> 0.8 | R11: =Q11 -> 0.8
B12: Z | C12: 100 | E12: gripping point | P12: Z0 | Q12: =Q13/Q11 -> 146.8477436 | R12: =C16 -> 200
B13: Y | C13: 63 | E13: gripping point | P13: Y0 | Q13: =IF(Q11=1,SQRT(C12^2+C13^2),C13/2+SQRT((C13/2)^2+Q11^2*C12^2)) -> 117.4781949 | R13: =R11*R12 -> 160
B14: Guidance type | C14: Sliding guidance (80 %) - Parallel Gripper | E14: Selection (sliding or roller guidance) based on current catalog data sheet | P14: A | Q14: =-Q15/Q12^2 -> -0.005447819491 | R14: =-R15/R12^2 -> -0.004
B15: Equivalent finger length | C15: =ROUNDUP(Q12,1) -> 146.9 | E15: calculated | P15: B | Q15: =Q13 -> 117.4781949 | R15: =R13 -> 160
B16: Permitted finger length | C16: 200 | E16: gripper parameter | P16: Wertetabelle
B17: Safety | C17: =C16/C15 -> 1.361470388 | E17: =CONCATENATE("calculated, ",IF(C17<1,"n.i.O","i.O")) -> calculated, i.O | P17: Z | Q17: Y | R17: Y | S17: Z
P18: 0 | Q18: =IF($Q$11=1,SQRT($Q$12^2-P18^2),$Q$14*P18^2+$Q$15) -> 117.4781949 | R18: =IF($R$11=1,SQRT($R$12^2-S18^2),$R$14*S18^2+$R$15) -> 160 | S18: 0
B19: =CONCATENATE("(for this gripping situation a gripper with a min. finger length of ",TEXT($C$15,"0,0")," mm must be used)") -> (for this gripping situation a gripper with a min. finger length of 146,9 mm must be used) | P19: =P18+(P$24-P$18)/(ROW(P$24)-ROW(P$18)) -> 9.789849576 | Q19: 116.9560696 | R19: 159.2888889 | S19: =S18+(S$24-S$18)/(ROW(S$24)-ROW(S$18)) -> 13.33333333
P20: =P19+(P$24-P$18)/(ROW(P$24)-ROW(P$18)) -> 19.57969915 | Q20: 115.3896937 | R20: 157.1555556 | S20: =S19+(S$24-S$18)/(ROW(S$24)-ROW(S$18)) -> 26.66666667
P21: =P20+(P$24-P$18)/(ROW(P$24)-ROW(P$18)) -> 29.36954873 | Q21: 112.7790671 | R21: 153.6 | S21: =S20+(S$24-S$18)/(ROW(S$24)-ROW(S$18)) -> 40
P22: =P21+(P$24-P$18)/(ROW(P$24)-ROW(P$18)) -> 39.1593983 | Q22: 109.1241899 | R22: 148.6222222 | S22: =S21+(S$24-S$18)/(ROW(S$24)-ROW(S$18)) -> 53.33333333
P23: =P22+(P$24-P$18)/(ROW(P$24)-ROW(P$18)) -> 48.94924788 | Q23: 104.4250621 | R23: 142.2222222 | S23: =S22+(S$24-S$18)/(ROW(S$24)-ROW(S$18)) -> 66.66666667
P24: =P50*S24/S50 -> 58.73909746 | Q24: 98.68168372 | R24: 134.4 | S24: =IF(Q11=1,0.8,0.4)*S50 -> 80
P25: =P24+(P$50-P$24)/(ROW(P$50)-ROW(P$24)) -> 62.12789154 | Q25: 96.45029316 | R25: 131.3609467 | S25: =S24+(S$50-S$24)/(ROW(S$50)-ROW(S$24)) -> 84.61538462
P26: 65.51668562 | Q26: 94.09377789 | R26: 128.1514793 | S26: 89.23076923
P27: 68.90547971 | Q27: 91.61213791 | R27: 124.7715976 | S27: 93.84615385
P28: 72.29427379 | Q28: 89.00537323 | R28: 121.2213018 | S28: 98.46153846
P29: 75.68306787 | Q29: 86.27348385 | R29: 117.5005917 | S29: 103.0769231
P30: 79.07186196 | Q30: 83.41646976 | R30: 113.6094675 | S30: 107.6923077
P31: 82.46065604 | Q31: 80.43433096 | R31: 109.547929 | S31: 112.3076923
P32: 85.84945013 | Q32: 77.32706747 | R32: 105.3159763 | S32: 116.9230769
P33: 89.23824421 | Q33: 74.09467926 | R33: 100.9136095 | S33: 121.5384615
P34: 92.62703829 | Q34: 70.73716636 | R34: 96.3408284 | S34: 126.1538462
P35: 96.01583238 | Q35: 67.25452874 | R35: 91.59763314 | S35: 130.7692308
P36: 99.40462646 | Q36: 63.64676643 | R36: 86.68402367 | S36: 135.3846154
P37: 102.7934205 | Q37: 59.9138794 | R37: 81.6 | S37: 140
P38: 106.1822146 | Q38: 56.05586768 | R38: 76.34556213 | S38: 144.6153846
P39: 109.5710087 | Q39: 52.07273125 | R39: 70.92071006 | S39: 149.2307692
P40: 112.9598028 | Q40: 47.96447011 | R40: 65.32544379 | S40: 153.8461538
P41: 116.3485969 | Q41: 43.73108427 | R41: 59.55976331 | S41: 158.4615385
P42: 119.737391 | Q42: 39.37257373 | R42: 53.62366864 | S42: 163.0769231
P43: 123.1261851 | Q43: 34.88893848 | R43: 47.51715976 | S43: 167.6923077
P44: 126.5149791 | Q44: 30.28017852 | R44: 41.24023669 | S44: 172.3076923
P45: 129.9037732 | Q45: 25.54629386 | R45: 34.79289941 | S45: 176.9230769
P46: 133.2925673 | Q46: 20.6872845 | R46: 28.17514793 | S46: 181.5384615
P47: 136.6813614 | Q47: 15.70315043 | R47: 21.38698225 | S47: 186.1538462
P48: 140.0701555 | Q48: 10.59389166 | R48: 14.42840237 | S48: 190.7692308
P49: 143.4589496 | Q49: 5.359508182 | R49: 7.299408284 | S49: 195.3846154
P50: =$Q$12 -> 146.8477436 | Q50: 0 | R50: 0 | S50: =$R$12 -> 200
